bitfinex/quotes_BTCUSD_20251031
["timestamp","ask_amount","ask_price","bid_price","bid_amount"]
[1761899395039,0.6242802,109990.0,109970.0,0.14833554]
[1761899395293,0.6242802,109990.0,109970.0,0.23815455]
[1761899395294,0.63270942,109990.0,109970.0,0.23815455]
[1761899395849,0.63270942,109990.0,109970.0,0.26212455]
[1761899396091,0.00842922,109990.0,109980.0,0.25657488]
[1761899396397,8.99088494,110000.0,109990.0,0.12728429]
[1761899396594,9.14311154,110000.0,109990.0,0.2446233]
[1761899396808,9.01583882,110000.0,109990.0,0.2446233]
[1761899397016,8.99938882,110000.0,109990.0,0.2685933]
[1761899397220,8.99938882,110000.0,109990.0,0.2446233]
[1761899397221,9.01583882,110000.0,109990.0,0.2446233]
[1761899398198,9.59074745,110000.0,109990.0,0.11733901]
[1761899398396,9.59174745,110000.0,109990.0,0.11733901]
[1761899398624,9.59174745,110000.0,109990.0,0.2446233]
[1761899399608,9.59174745,110000.0,109990.0,0.11733901]
[1761899399816,9.59174745,110000.0,109990.0,0.10184901]
[1761899400215,9.61563745,110000.0,109990.0,0.08981901]
[1761899400656,0.12728686,109990.0,109980.0,0.12729587]
[1761899400854,0.00850388,109990.0,109980.0,0.21711488]
[1761899401050,0.02495388,109990.0,109980.0,0.23260488]
[1761899401256,0.12729587,109980.0,109960.0,0.14833425]
[1761899401469,0.47310591,109970.0,109960.0,0.25364326]
[1761899401896,0.60041335,109970.0,109960.0,0.25364326]
[1761899402336,0.60041335,109970.0,109960.0,0.25366224]
[1761899402766,0.60041335,109970.0,109960.0,0.11085322]
[1761899402979,0.47310591,109970.0,109960.0,0.22623224]
[1761899403221,0.60041335,109970.0,109960.0,0.09991322]
[1761899403464,0.15277744,109970.0,109960.0,0.22723224]
[1761899403668,0.15277744,109970.0,109960.0,0.24272224]
[1761899404291,0.15277744,109970.0,109960.0,0.24372224]
[1761899404742,0.02547,109970.0,109960.0,0.24372224]
[1761899404966,2.0,109980.0,109970.0,0.12730164]
[1761899405184,0.00849978,109980.0,109970.0,0.28679742]
[1761899405401,9.12724856,110000.0,109990.0,0.12728429]
[1761899405622,9.01583433,110000.0,109990.0,0.14277429]
[1761899405878,9.01583433,110000.0,109990.0,0.2446233]
[1761899407421,9.14310705,110000.0,109990.0,0.2446233]
[1761899407627,9.01860577,110000.0,109990.0,0.2446233]
[1761899407846,9.00215577,110000.0,109990.0,0.2685933]
[1761899408759,9.00115577,110000.0,109990.0,0.2685933]
[1761899408991,9.00115577,110000.0,109990.0,0.2695933]
[1761899409196,9.00115577,110000.0,109990.0,0.2685933]
[1761899409625,8.99265638,110000.0,109990.0,0.2705933]
[1761899409854,8.99265638,110000.0,109990.0,0.2685933]
[1761899410073,8.99265638,110000.0,109990.0,0.2715933]
[1761899411327,8.99265638,110000.0,109990.0,0.2755933]
[1761899411542,8.99265638,110000.0,109990.0,1.30320755]
[1761899412784,8.79250618,110000.0,109990.0,1.30320755]
[1761899415230,8.79250618,110000.0,109990.0,0.6155933]
[1761899415651,8.79250618,110000.0,109990.0,1.30320755]
[1761899416480,8.79250618,110000.0,109990.0,1.33938983]
[1761899417711,8.37570041,110000.0,109990.0,1.33938983]
[1761899417916,8.22626511,110000.0,109990.0,1.33938983]
[1761899418734,8.22626511,110000.0,109990.0,1.33538983]
[1761899418934,8.22626511,110000.0,109990.0,1.33238983]
[1761899419320,8.22626511,110000.0,109990.0,1.33738983]
[1761899419738,7.78628297,110000.0,109990.0,1.33738983]
[1761899419916,7.78628297,110000.0,109990.0,1.34338983]
[1761899420335,7.37621987,110000.0,109990.0,1.34338983]
[1761899420672,7.05036783,110000.0,109990.0,3.67483916]
[1761899420795,6.88024491,110000.0,109990.0,4.36245341]
[1761899421267,6.50316536,110000.0,109990.0,4.3724534]
[1761899421489,6.2601027,110000.0,109990.0,4.3724534]
[1761899422107,6.2601027,110000.0,109990.0,4.36245341]
[1761899422334,5.8289149,110000.0,109990.0,4.3724534]
[1761899422553,5.45962524,110000.0,109990.0,4.4390534]
[1761899424275,5.030923,110000.0,109990.0,4.4390534]
[1761899424503,4.95505763,110000.0,109990.0,4.4390534]
[1761899424704,4.59380788,110000.0,109990.0,4.4390534]
[1761899424886,4.53885517,110000.0,109990.0,4.4390534]
[1761899425336,4.53885517,110000.0,109990.0,4.41905342]
[1761899425737,4.53885517,110000.0,109990.0,3.6861933]
[1761899425895,4.53885517,110000.0,109990.0,0.3461933]
[1761899426266,4.53885517,110000.0,109990.0,0.6861933]
[1761899426467,4.53885517,110000.0,109990.0,0.3461933]
[1761899426671,4.53885517,110000.0,109990.0,0.3401933]
[1761899426918,4.53885517,110000.0,109990.0,0.6801933]
[1761899427095,4.53885517,110000.0,109990.0,0.6841933]
[1761899427837,4.53885517,110000.0,109990.0,0.6791933]
[1761899428188,4.53885517,110000.0,109990.0,0.6831933]
[1761899428741,4.53885517,110000.0,109990.0,0.68275636]
[1761899432825,4.53885517,110000.0,109990.0,0.21590901]
[1761899433486,4.55518517,110000.0,109990.0,0.19193901]
[1761899433769,4.53885517,110000.0,109990.0,0.21229901]
[1761899434197,4.68245789,110000.0,109990.0,0.18393901]
[1761899434404,5.37007214,110000.0,109990.0,0.18393901]
[1761899434623,5.37007214,110000.0,109990.0,0.17144901]
[1761899434832,5.37007214,110000.0,109990.0,0.18680901]
[1761899435040,5.37007214,110000.0,109990.0,0.18780901]
[1761899435454,4.68245789,110000.0,109990.0,0.18780901]
[1761899435665,4.55518517,110000.0,109990.0,0.18680901]
[1761899435881,4.68245789,110000.0,109990.0,0.15941901]
[1761899436094,4.68345789,110000.0,109990.0,0.17477901]
[1761899436607,4.68345789,110000.0,109990.0,0.15941901]
[1761899437884,4.70819789,110000.0,109990.0,0.15941901]
[1761899438315,4.68345789,110000.0,109990.0,0.17477901]
[1761899440032,4.68345789,110000.0,109990.0,0.15941901]
[1761899440254,4.70819789,110000.0,109990.0,0.15941901]
[1761899440504,4.68345789,110000.0,109990.0,0.15941901]
[1761899440727,4.70819789,110000.0,109990.0,0.15941901]
[1761899440956,5.39581214,110000.0,109990.0,0.15941901]
[1761899442497,4.70819789,110000.0,109990.0,0.15941901]
[1761899443490,4.70819789,110000.0,109990.0,0.0696]
[1761899443700,5.39581214,110000.0,109990.0,0.0696]
[1761899445758,7.39581214,110000.0,109990.0,0.0696]
[1761899446690,7.39481214,110000.0,109990.0,0.0696]
[1761899446895,7.39481214,110000.0,109990.0,0.0666]
[1761899447282,7.43099442,110000.0,109990.0,0.0666]
[1761899448203,7.43499442,110000.0,109990.0,0.0666]
[1761899448582,7.85732404,110000.0,109990.0,0.0666]
[1761899448788,7.77499442,110000.0,109990.0,0.0666]
[1761899448951,7.58359562,110000.0,109990.0,0.0666]
[1761899452156,7.67341463,110000.0,109990.0,0.0666]
[1761899453379,7.68190786,110000.0,109990.0,0.0666]
[1761899454723,7.70239633,110000.0,109990.0,0.0666]
[1761899454924,7.68190786,110000.0,109990.0,0.0666]
[1761899458535,7.69092786,110000.0,109990.0,0.0666]
[1761899458737,7.70519077,110000.0,109990.0,0.0666]
[1761899458913,6.84179077,110000.0,109990.0,0.0666]
[1761899460353,0.1273306,109950.0,109940.0,0.03053174]
[1761899460588,0.1543306,109950.0,109940.0,0.11982901]
[1761899460789,0.86841485,109950.0,109940.0,0.08981901]
[1761899461436,0.86841485,109950.0,109940.0,0.09281901]
[1761899461609,0.86841485,109950.0,109940.0,0.00348294]
[1761899462046,0.86841485,109950.0,109940.0,0.00048294]
[1761899462479,0.74108425,109950.0,109940.0,0.00048294]
[1761899462690,0.00902,109960.0,109940.0,0.15128369]
[1761899462906,0.00902,109960.0,109950.0,0.10748901]
[1761899463092,0.00902,109960.0,109950.0,0.13160901]
[1761899463306,0.5839486,109970.0,109950.0,0.13160901]
[1761899463503,0.9403586,109970.0,109960.0,0.01767]
[1761899463703,0.12731902,109960.0,109950.0,0.08981901]
[1761899463971,0.14372902,109960.0,109950.0,0.10748901]
[1761899464402,0.59125555,109960.0,109950.0,0.10748901]
[1761899464612,0.46393653,109960.0,109950.0,0.10748901]
[1761899464740,0.46393653,109960.0,109950.0,0.13160901]
[1761899464956,0.01641,109960.0,109950.0,0.13160901]
[1761899465441,0.01641,109960.0,109950.0,0.10748901]
[1761899465632,0.01841,109960.0,109950.0,0.10748901]
[1761899466028,0.14572902,109960.0,109950.0,0.10748901]
[1761899466271,0.59325555,109960.0,109950.0,0.08981901]
[1761899466481,0.01929605,109960.0,109950.0,0.10748901]
[1761899466710,0.00288605,109960.0,109950.0,0.13160901]
[1761899467374,0.14661507,109960.0,109950.0,0.10748901]
[1761899467586,0.6206116,109960.0,109950.0,0.08981901]
[1761899467795,0.1273306,109950.0,109940.0,0.00048294]
[1761899468025,0.1543306,109950.0,109940.0,0.09030195]
[1761899468233,0.1543306,109950.0,109940.0,0.10797195]
[1761899468436,0.60185713,109950.0,109940.0,0.10797195]
[1761899468819,0.1543306,109950.0,109940.0,0.10797195]
[1761899469026,0.01059,109950.0,109940.0,0.13309195]
[1761899469594,0.60331555,109960.0,109940.0,0.26043293]
[1761899469595,0.12931902,109960.0,109940.0,0.26043293]
[1761899469804,0.002,109960.0,109950.0,0.13160901]
[1761899470574,0.5839486,109970.0,109950.0,0.13160901]
[1761899470814,0.6137986,109970.0,109950.0,0.13160901]
[1761899471018,0.12731902,109960.0,109950.0,0.13160901]
[1761899471337,0.14672902,109960.0,109950.0,0.08981901]
[1761899471539,0.62072555,109960.0,109950.0,0.08981901]
[1761899472189,0.1273306,109950.0,109940.0,0.00048294]
[1761899472407,0.1543306,109950.0,109940.0,0.09030195]
[1761899472622,0.1543306,109950.0,109940.0,0.10797195]
[1761899473276,0.1549952,109950.0,109940.0,0.10797195]
[1761899473488,0.1549952,109950.0,109940.0,0.10897195]
[1761899473489,0.0286646,109950.0,109940.0,0.10897195]
[1761899473690,0.0122546,109950.0,109940.0,0.10897195]
[1761899473940,0.0122546,109950.0,109940.0,0.13476195]
[1761899474473,0.0016646,109950.0,109940.0,0.28029587]
[1761899474675,0.0016646,109950.0,109940.0,0.26210413]
[1761899477525,0.57823522,109970.0,109950.0,0.02516]
[1761899477727,0.57823522,109970.0,109950.0,0.11497901]
[1761899477963,0.5873286,109970.0,109950.0,0.11497901]
[1761899478842,0.6141386,109970.0,109950.0,0.11497901]
[1761899479059,0.6151386,109970.0,109950.0,0.11497901]
[1761899479483,0.39384847,109960.0,109950.0,0.11497901]
[1761899479853,0.53811749,109960.0,109950.0,0.13315901]
[1761899480640,0.39684847,109960.0,109950.0,0.13315901]
[1761899481435,0.52416749,109960.0,109950.0,0.13315901]
[1761899481687,0.54111749,109960.0,109950.0,0.10799901]
[1761899481930,0.96177596,109960.0,109950.0,0.08981901]
[1761899482117,0.93496596,109960.0,109950.0,0.08981901]
[1761899482315,0.96177596,109960.0,109950.0,0.08981901]
[1761899483090,0.96199743,109960.0,109950.0,0.08981901]
[1761899483288,0.93518743,109960.0,109950.0,0.08981901]
[1761899484425,0.93518743,109960.0,109950.0,0.10799901]
[1761899485521,0.94458743,109960.0,109950.0,0.10799901]
[1761899487817,0.97139743,109960.0,109950.0,0.08981901]
[1761899489684,0.94458743,109960.0,109950.0,0.08981901]
[1761899490794,0.97139743,109960.0,109950.0,0.08981901]
[1761899491427,0.1273306,109950.0,109940.0,0.03931294]
[1761899491642,0.53812907,109950.0,109940.0,0.12215195]
[1761899491847,0.54752907,109950.0,109940.0,0.12215195]
[1761899492809,0.54852907,109950.0,109940.0,0.12215195]
[1761899493017,0.57533907,109950.0,109940.0,0.09030195]
[1761899493193,0.57533907,109950.0,109940.0,0.09130195]
[1761899494233,0.57533907,109950.0,109940.0,0.00148294]
[1761899494825,0.58455102,109950.0,109940.0,0.00148294]
[1761899495122,0.57533907,109950.0,109940.0,0.00148294]
[1761899496622,0.96918754,109950.0,109940.0,0.00148294]
[1761899496825,3.88612366,109950.0,109940.0,0.00148294]
[1761899497036,3.46388557,109950.0,109940.0,0.00148294]
[1761899497213,3.40972557,109950.0,109940.0,0.00148294]
[1761899497454,3.39005766,109950.0,109940.0,0.00148294]
[1761899498091,3.80656146,109950.0,109940.0,0.00148294]
[1761899498507,3.81356145,109950.0,109940.0,0.00148294]
[1761899498923,3.81356145,109950.0,109940.0,0.00048294]
[1761899498924,3.81756145,109950.0,109940.0,0.00048294]
[1761899499340,3.79790612,109950.0,109940.0,0.00048294]
[1761899499548,3.79890612,109950.0,109940.0,0.00048294]
[1761899500375,3.69363169,109950.0,109940.0,0.00048294]
[1761899500579,3.29978322,109950.0,109940.0,0.00048294]
[1761899500754,3.60381268,109950.0,109940.0,0.00048294]
[1761899501719,3.62621591,109950.0,109940.0,0.00048294]
[1761899502140,3.65583659,109950.0,109940.0,0.00048294]
[1761899502348,3.6362159,109950.0,109940.0,0.00048294]
[1761899502554,3.68317923,109950.0,109940.0,0.00048294]
[1761899502754,3.77299824,109950.0,109940.0,0.00048294]
[1761899503376,3.75059501,109950.0,109940.0,0.00048294]
[1761899504316,3.77299824,109950.0,109940.0,0.00048294]
[1761899506524,3.75338392,109950.0,109940.0,0.00048294]
[1761899507207,3.77297612,109950.0,109940.0,0.00048294]
[1761899507977,3.76297613,109950.0,109940.0,0.00048294]
[1761899508177,3.77297612,109950.0,109940.0,0.00048294]
[1761899508387,3.74338393,109950.0,109940.0,0.00048294]
[1761899508624,3.75338392,109950.0,109940.0,0.00048294]
[1761899509412,3.74338393,109950.0,109940.0,0.00048294]
[1761899509632,3.76765501,109950.0,109940.0,0.00048294]
[1761899510396,3.78724023,109950.0,109940.0,0.00048294]
[1761899512788,3.37098853,109950.0,109940.0,0.00048294]
[1761899513006,3.764837,109950.0,109940.0,0.00048294]
[1761899513382,3.28116952,109950.0,109940.0,0.00048294]
[1761899513588,3.18805302,109950.0,109940.0,0.00048294]
[1761899513790,3.20996421,109950.0,109940.0,0.00048294]
[1761899513941,3.17378193,109950.0,109940.0,0.00048294]
[1761899514545,2.036085,109950.0,109940.0,0.00048294]
[1761899514757,2.33108563,109950.0,109940.0,0.01754294]
[1761899514960,2.77046012,109950.0,109940.0,0.00048294]
[1761899516900,3.11046012,109950.0,109940.0,0.00048294]
[1761899520457,3.35516012,109950.0,109940.0,0.00048294]
[1761899521964,3.44497913,109950.0,109940.0,0.00048294]
[1761899522181,3.40879685,109950.0,109940.0,0.00048294]
[1761899522338,2.14990656,109950.0,109940.0,0.03017294]
[1761899522552,0.52617907,109950.0,109940.0,0.03017294]
[1761899523392,0.52217907,109950.0,109940.0,0.03017294]
[1761899523812,0.52117907,109950.0,109940.0,0.03217294]
[1761899524016,0.52117907,109950.0,109940.0,0.01511294]
[1761899524223,0.52117907,109950.0,109940.0,0.01711294]
[1761899524432,0.52117907,109950.0,109940.0,0.03417294]
[1761899525452,0.52133025,109950.0,109940.0,0.00448294]
[1761899526061,2.9153299,109950.0,109940.0,0.00448294]
[1761899526921,2.9153299,109950.0,109940.0,0.00048294]
[1761899527253,3.2553299,109950.0,109940.0,0.00148294]
[1761899529121,3.29151218,109950.0,109940.0,0.00148294]
[1761899530176,3.29251218,109950.0,109940.0,0.00048294]
[1761899530801,3.4721502,109950.0,109940.0,0.00048294]
[1761899531239,3.49178194,109950.0,109940.0,0.00048294]
[1761899532244,3.50605258,109950.0,109940.0,0.00048294]
[1761899533495,3.51605257,109950.0,109940.0,0.00048294]
[1761899533904,3.54340158,109950.0,109940.0,1e-08]
[1761899534231,3.54196464,109950.0,109940.0,1e-08]
[1761899534645,3.54796464,109950.0,109940.0,1e-08]
[1761899539216,3.96436752,109950.0,109940.0,1e-08]
[1761899539675,3.9951898,109950.0,109940.0,1e-08]
[1761899545371,3.58036786,109950.0,109940.0,1e-08]
[1761899545579,3.56609722,109950.0,109940.0,1e-08]
[1761899546220,3.95009688,109950.0,109940.0,1e-08]
[1761899546457,3.96009687,109950.0,109940.0,1e-08]
[1761899547530,3.56609722,109950.0,109940.0,1e-08]
[1761899549578,3.49147388,109950.0,109940.0,1e-08]
[1761899551587,3.5057434,109950.0,109940.0,1e-08]
[1761899555602,3.6016834,109950.0,109940.0,1e-08]
[1761899556830,0.12738853,109900.0,109880.0,0.17398055]
[1761899557041,0.12738853,109900.0,109890.0,0.08981901]
[1761899557454,0.12738853,109900.0,109890.0,0.11855901]
[1761899557692,0.12738853,109900.0,109890.0,0.10155901]
[1761899557895,0.12738853,109900.0,109890.0,0.11855901]
[1761899558290,0.12738853,109900.0,109890.0,0.14299901]
[1761899558521,0.12738853,109900.0,109890.0,0.08981901]
[1761899558893,0.12738853,109900.0,109890.0,0.09181901]
[1761899559487,0.46247876,109910.0,109890.0,0.09581901]
[1761899559689,2.12738853,109900.0,109890.0,0.11081901]
[1761899559870,0.12738853,109900.0,109890.0,0.11281901]
[1761899560071,0.12738853,109900.0,109890.0,0.10881901]
[1761899560288,0.12738853,109900.0,109890.0,0.11081901]
[1761899560701,0.12738853,109900.0,109890.0,0.12255901]
[1761899563446,0.12738853,109900.0,109890.0,0.004]
[1761899563447,0.52138818,109900.0,109890.0,0.004]
[1761899563841,0.12738853,109900.0,109890.0,0.004]
[1761899564040,0.52138818,109900.0,109890.0,0.004]
[1761899564804,0.52138818,109900.0,109890.0,0.002]
[1761899564988,0.52138818,109900.0,109890.0,0.001]
[1761899565289,0.52138818,109900.0,109890.0,0.002]
[1761899567446,2.86138818,109900.0,109890.0,0.002]
[1761899569947,2.89757046,109900.0,109890.0,0.002]
[1761899570117,3.32172528,109900.0,109890.0,0.002]
[1761899570329,2.92772563,109900.0,109890.0,0.002]
[1761899570527,2.99707364,109900.0,109890.0,0.002]
[1761899570740,3.02848519,109900.0,109890.0,0.002]
[1761899571150,2.99833002,109900.0,109890.0,0.002]
[1761899571351,2.97865847,109900.0,109890.0,0.002]
[1761899574080,2.90931046,109900.0,109890.0,0.002]
[1761899575183,3.30331011,109900.0,109890.0,0.002]
[1761899578457,3.37099301,109900.0,109890.0,0.002]
[1761899578898,2.97699336,109900.0,109890.0,0.002]
[1761899580249,0.01174,109900.0,109890.0,0.05462]
[1761899580471,0.06847911,109910.0,109890.0,0.14443901]
[1761899580702,0.12738853,109900.0,109890.0,0.10433901]
[1761899581109,0.12738853,109900.0,109890.0,0.14443901]
[1761899581288,0.80247876,109910.0,109890.0,0.14343901]
[1761899581494,0.80247876,109910.0,109900.0,0.05262]
[1761899581495,0.40847911,109910.0,109900.0,0.05262]
[1761899581734,0.80347876,109910.0,109900.0,0.05262]
[1761899582209,0.001,109910.0,109900.0,0.26982754]
[1761899582405,0.63869965,109920.0,109900.0,0.26982754]
[1761899582597,0.97869965,109920.0,109910.0,0.05162]
[1761899582820,1.106065,109920.0,109910.0,0.05162]
[1761899585379,1.50040039,109920.0,109910.0,0.05262]
[1761899586052,0.71206535,109920.0,109910.0,0.05262]
[1761899586287,1.50040039,109920.0,109910.0,0.05262]
[1761899586857,0.46736535,109920.0,109910.0,0.05262]
[1761899587075,1.25570039,109920.0,109910.0,0.05262]
[1761899588074,1.25570039,109920.0,109910.0,0.02805]
[1761899590208,1.25570039,109920.0,109910.0,0.001]
[1761899592821,1.25570039,109920.0,109910.0,0.01653]
[1761899593557,3.64986791,109920.0,109910.0,0.001]
[1761899593797,3.25570039,109920.0,109910.0,0.01653]
[1761899594719,3.25570039,109920.0,109910.0,0.001]
[1761899596201,3.28305115,109920.0,109910.0,0.001]
[1761899596715,2.49471611,109920.0,109910.0,0.001]
[1761899596935,3.28305115,109920.0,109910.0,0.001]
[1761899598516,2.49471611,109920.0,109910.0,0.001]
[1761899598750,2.88888363,109920.0,109910.0,0.001]
[1761899598966,0.88888363,109920.0,109910.0,0.001]
[1761899599957,1.28305115,109920.0,109910.0,0.001]
[1761899600179,1.25570039,109920.0,109910.0,0.001]
[1761899601113,0.46736535,109920.0,109910.0,0.001]
[1761899601335,0.86153287,109920.0,109910.0,0.001]
[1761899602024,1.25570039,109920.0,109910.0,0.02926]
[1761899602489,1.25570039,109920.0,109910.0,0.001]
[1761899603639,1.25570039,109920.0,109910.0,0.02926]
[1761899605727,0.91570039,109920.0,109910.0,0.02926]
[1761899605945,1.25570039,109920.0,109910.0,0.02926]
[1761899607008,1.26479529,109920.0,109910.0,0.02926]
[1761899608300,1.26479529,109920.0,109910.0,0.05375]
[1761899608727,1.26479529,109920.0,109910.0,0.02926]
[1761899610220,0.16382216,109930.0,109910.0,0.27094595]
[1761899610221,0.42151618,109930.0,109910.0,0.27094595]
[1761899610430,0.39416752,109930.0,109920.0,0.24544436]
[1761899610625,0.73416752,109930.0,109920.0,0.11807901]
[1761899611081,0.12736535,109920.0,109910.0,0.001]
[1761899611281,0.91570039,109920.0,109910.0,0.001]
[1761899611495,1.30986791,109920.0,109910.0,0.001]
[1761899611833,1.30986791,109920.0,109900.0,0.13648656]
[1761899612034,0.78833504,109910.0,109900.0,0.22645039]
[1761899612472,0.78833504,109910.0,109900.0,0.24252039]
[1761899613111,0.78833504,109910.0,109900.0,0.24452039]
[1761899613330,0.39416752,109910.0,109900.0,0.28120039]
[1761899613539,0.39416752,109910.0,109900.0,0.27920039]
[1761899613749,0.39416752,109910.0,109900.0,0.28320039]
[1761899613948,0.39416752,109910.0,109900.0,0.28420039]
[1761899614184,0.39416752,109910.0,109900.0,0.28320039]
[1761899614597,0.39416752,109920.0,109910.0,0.12737694]
[1761899614831,0.39416752,109920.0,109910.0,0.26994595]
[1761899615281,0.52153287,109920.0,109910.0,0.08981901]
[1761899615690,0.86153287,109920.0,109910.0,0.08981901]
[1761899615956,1.64986791,109920.0,109910.0,0.08981901]
[1761899616159,1.64986791,109920.0,109910.0,0.09181901]
[1761899616363,1.64986791,109920.0,109910.0,0.002]
[1761899617248,1.64986791,109920.0,109910.0,0.003]
[1761899624878,1.67721867,109920.0,109910.0,0.003]
[1761899625018,1.70519754,109920.0,109910.0,0.003]
[1761899625229,1.67721867,109920.0,109910.0,0.001]
[1761899625440,1.67721867,109920.0,109910.0,0.002]
[1761899625825,4.99499235,109920.0,109910.0,0.002]
[1761899626271,5.08137021,109920.0,109910.0,0.002]
[1761899626468,5.01465485,109920.0,109910.0,0.002]
[1761899626737,5.10447386,109920.0,109910.0,0.002]
[1761899627351,5.10447386,109920.0,109910.0,0.001]
[1761899627511,5.10547386,109920.0,109910.0,0.001]
[1761899628387,5.10547386,109920.0,109900.0,0.00014482]
[1761899628388,0.50355922,109910.0,109900.0,0.00014482]
[1761899628518,2.98754575,109910.0,109900.0,0.00014482]
[1761899629541,3.77588079,109910.0,109900.0,0.00014482]
[1761899630560,3.77588079,109910.0,109900.0,0.00114482]
[1761899631449,3.77588079,109910.0,109900.0,0.00014482]
[1761899631860,3.84945764,109910.0,109900.0,0.00014482]
[1761899632321,5.0319602,109910.0,109900.0,0.00014482]
[1761899632699,3.86908984,109910.0,109900.0,0.00014482]
[1761899632944,4.26325736,109910.0,109900.0,0.00014482]
[1761899634823,4.27509736,109910.0,109900.0,0.00014482]
[1761899635250,4.25546516,109910.0,109900.0,0.00014482]
[1761899635467,3.86129764,109910.0,109900.0,0.00014482]
[1761899637365,4.25546516,109910.0,109900.0,0.00014482]
[1761899638299,4.26974043,109910.0,109900.0,0.00014482]
[1761899638757,4.25546516,109910.0,109900.0,0.00014482]
[1761899640773,5.0438002,109910.0,109900.0,1e-08]
[1761899641029,0.5035824,109890.0,109880.0,0.0004]
[1761899641233,2.96097961,109890.0,109880.0,0.0004]
[1761899641843,2.98833937,109890.0,109880.0,0.0004]
[1761899642049,3.31940883,109890.0,109880.0,0.01607]
[1761899642265,3.28322655,109890.0,109880.0,0.02791]
[1761899642468,1.28322655,109890.0,109880.0,0.05084]
[1761899642671,1.28322655,109890.0,109880.0,0.02791]
[1761899643009,1.28322655,109890.0,109880.0,0.0004]
[1761899643208,3.28322655,109890.0,109880.0,0.0014]
[1761899643901,3.67739407,109890.0,109880.0,0.0014]
[1761899644096,3.37304556,109890.0,109880.0,0.0014]
[1761899644322,3.76721308,109890.0,109880.0,0.0014]
[1761899645309,3.37380734,109890.0,109880.0,0.0014]
[1761899645642,3.0993634,109890.0,109880.0,0.0014]
[1761899645842,3.74731322,109890.0,109880.0,0.0014]
[1761899646793,3.74731322,109890.0,109880.0,0.0004]
[1761899646983,3.74831322,109890.0,109880.0,0.0004]
[1761899647214,0.12743491,109860.0,109850.0,0.01184]
[1761899647413,0.91653173,109860.0,109850.0,0.01184]
[1761899647795,1.25653173,109860.0,109850.0,0.01184]
[1761899648246,1.25653173,109860.0,109850.0,0.02751]
[1761899649681,1.25653173,109860.0,109850.0,0.03251]
[1761899650083,1.25653173,109860.0,109850.0,0.01684]
[1761899650394,1.25653173,109860.0,109850.0,0.01184]
[1761899650597,1.25653173,109860.0,109850.0,0.01484]
[1761899651023,1.25653173,109860.0,109850.0,0.03051]
[1761899651595,1.25653173,109860.0,109850.0,0.003]
[1761899652458,1.25653173,109860.0,109850.0,0.01867]
[1761899653434,1.25653173,109860.0,109850.0,0.003]
[1761899655132,3.25653173,109860.0,109850.0,0.003]
[1761899655485,3.37371632,109860.0,109850.0,0.003]
[1761899655694,3.4098986,109860.0,109850.0,0.003]
[1761899656131,3.4098986,109860.0,109830.0,0.03538]
[1761899656132,0.12745812,109840.0,109830.0,0.03538]
[1761899656344,0.52200653,109840.0,109830.0,0.12519901]
[1761899656547,0.52200653,109840.0,109830.0,0.14158901]
[1761899657389,0.52200653,109840.0,109830.0,0.14207242]
[1761899658255,0.52200653,109840.0,109830.0,0.14707242]
[1761899660606,0.52200653,109840.0,109830.0,0.27454214]
[1761899660807,0.52200653,109840.0,109830.0,0.14707242]
[1761899662167,0.52200653,109840.0,109830.0,0.14640242]
[1761899666744,0.16390298,109860.0,109840.0,0.028]
[1761899666950,0.1365374,109860.0,109850.0,0.11781901]
[1761899667155,0.53108581,109860.0,109850.0,0.11781901]
[1761899667356,0.5219813,109870.0,109850.0,0.28634216]
[1761899667565,0.39454841,109870.0,109860.0,0.17830491]
[1761899667743,0.39454841,109870.0,109860.0,0.26812392]
[1761899667947,0.52197172,109870.0,109860.0,0.14068901]
[1761899668836,0.52197172,109870.0,109860.0,0.14168901]
[1761899669029,0.12742331,109870.0,109860.0,0.14168901]
[1761899669271,0.39654841,109870.0,109860.0,0.14168901]
[1761899669473,0.52397172,109870.0,109860.0,0.14168901]
[1761899669675,0.39654841,109870.0,109860.0,0.26912392]
[1761899670367,0.52397172,109870.0,109860.0,0.26912392]
[1761899670977,0.002,109870.0,109860.0,0.26912392]
[1761899671814,0.002,109870.0,109860.0,0.26812392]
[1761899672075,0.53104856,109890.0,109870.0,0.12741595]
[1761899672281,0.53104856,109890.0,109880.0,0.08981901]
[1761899672489,0.53104856,109890.0,109880.0,0.14068901]
[1761899673675,0.53204856,109890.0,109880.0,0.14068901]
[1761899673906,0.53204856,109890.0,109880.0,0.14168901]
[1761899674896,0.92659697,109890.0,109880.0,0.14168901]
[1761899681585,0.92659697,109890.0,109880.0,0.05187]
[1761899681780,0.92659697,109890.0,109880.0,0.029]
[1761899681918,0.92659697,109890.0,109880.0,0.05187]
[1761899682583,0.92659697,109890.0,109880.0,0.029]
[1761899682970,1.26659697,109890.0,109880.0,0.001]
[1761899683436,3.26659697,109890.0,109880.0,0.001]
[1761899683652,3.29395459,109890.0,109880.0,0.001]
[1761899684485,1.29395459,109890.0,109880.0,0.02937]
[1761899684830,1.30822727,109890.0,109880.0,0.02937]
[1761899685410,1.30822727,109890.0,109880.0,0.001]
[1761899685411,3.81450429,109890.0,109880.0,0.001]
[1761899686462,0.12743491,109860.0,109850.0,0.03529]
[1761899686680,0.91653173,109860.0,109850.0,0.05212341]
[1761899688210,0.91653173,109860.0,109850.0,0.05412341]
[1761899688607,0.91653173,109860.0,109850.0,0.05212341]
[1761899689037,0.91653173,109860.0,109850.0,0.05412341]
[1761899692694,0.91653173,109860.0,109850.0,0.03065341]
[1761899692905,2.91653173,109860.0,109850.0,0.03065341]
[1761899693699,0.12743491,109860.0,109850.0,0.05412341]
[1761899693929,0.52198332,109860.0,109850.0,0.05412341]
[1761899694146,0.91653173,109860.0,109850.0,0.05412341]
[1761899695712,0.54534555,109880.0,109860.0,0.12743491]
[1761899695920,0.39454841,109870.0,109860.0,0.01202]
[1761899696121,0.39454841,109870.0,109860.0,0.22927392]
[1761899696232,0.39454841,109870.0,109860.0,0.24562392]
[1761899696441,0.53104856,109890.0,109870.0,0.12741887]
[1761899696642,0.53104856,109890.0,109880.0,0.05184]
[1761899697256,0.53104853,109890.0,109880.0,0.26907073]
[1761899697697,0.53204853,109890.0,109880.0,0.14165901]
[1761899697890,0.92659694,109890.0,109880.0,0.14165901]
[1761899698976,0.92559694,109890.0,109880.0,0.14365901]
[1761899699420,0.92659694,109890.0,109880.0,0.14365901]
[1761899699632,0.92559694,109890.0,109880.0,0.14365901]
[1761899700717,0.39454841,109890.0,109880.0,0.27107073]
[1761899701487,0.39454841,109900.0,109890.0,0.12739603]
[1761899701773,0.52193694,109900.0,109890.0,0.25270504]
[1761899701952,0.52193694,109900.0,109890.0,0.26905504]
[1761899702628,0.39454841,109900.0,109890.0,0.26905504]
[1761899703128,0.39554841,109900.0,109890.0,0.26905504]
[1761899703344,0.52293694,109900.0,109890.0,0.26905504]
[1761899703518,0.39554841,109900.0,109890.0,0.26905504]
[1761899704270,0.52293694,109900.0,109890.0,0.14165901]